[Event "Netanya Open 2019"]
[Site "Netanya"]
[Date "2019.06.28"]
[Round "6.57"]
[White "Vagman, Roy"]
[Black "Fudim, Ariel"]
[Result "1-0"]
[WhiteElo "1918"]
[BlackElo "1768"]
[PlyCount "199"]
[EventDate "2019.06.23"]
[EventType "swiss"]
[EventRounds "9"]
[EventCountry "ISR"]
[TimeControl "40/5400+30:1800+30"]

1. e4 c5 2. Ne2 Nc6 3. Nbc3 g6 4. d4 cxd4 5. Nxd4 Bg7 6. Nde2 Nf6 7. g3 O-O 8. Bg2 d6 9. O-O Bd7 10. h3 Rb8 11. Be3 a6 12. Nd5 b5 13. Rb1 Bc8 14. f4 Nd7 15. Bf2 e6 16. Ne3 Nb6 17. b3 b4 18. Qd2 d5 19. e5 a5 20. Rfd1 Qe7 21. Rbc1 Ba6 22. c4 bxc3 23. Rxc3 Rfc8 24. Rdc1 Qd7 25. Nd4 Nxd4 26. Qxd4 Rxc3 27. Rxc3 Nc8 28. Nc2 Ne7 29. Qc5 Qd8 30. Qa7 Ra8 31. Qb6 Qxb6 32. Bxb6 a4 33. bxa4 Nf5 34. Nb4 Bf8 35. Nxa6 Rxa6 36. a5 Ra8 37. Bf1 Bb4 38. Rb3 Bxa5 39. Bf2 Bd8 40. a4 Kg7 41. Bb5 Rc8 42. g4 Rc1+ 43. Kh2 Ne7 44. Bh4 Rc2+ 45. Kg3 h6 46. Bf6+ Kf8 47. Bd3 Rc8 48. h4 Ng8 49. Bxd8 Rxd8 50. a5 Ne7 51. a6 Nc6 52. Rb6 Rc8 53. Bb5 Na7 54. Ba4 Rc3+ 55. Kg2 Rc4 56. Rb8+ Kg7 57. Bd7 Rc2+ 58. Kf3 Ra2 59. Rb6 Ra3+ 60. Ke2 Kf8 61. Kd2 g5 62. fxg5 hxg5 63. h5 Kg7 64. Kc2 Ra5 65. Kc3 Nc8 66. Kb4 Nxb6 67. Kxa5 Nxd7 68. a7 Nxe5 69. a8=Q Nxg4 70. Kb4 Kf6 71. Qh8+ Kf5 72. Qh7+ Kf6 73. h6 Nxh6 74. Qxh6+ Kf5 75. Kc5 g4 76. Qh2 Ke4 77. Qe2+ Kf4 78. Kd4 g3 79. Qf1+ Kg4 80. Ke5 f5 81. Qe2+ Kh3 82. Kf4 e5+ 83. Kxe5 g2 84. Qh5+ Kg3 85. Qg5+ Kf2 86. Qxf5+ Ke2 87. Qg4+ Kf2 88. Qf4+ Ke1 89. Qg3+ Kf1 90. Qf3+ Kg1 91. Kxd5 Kh2 92. Qf2 Kh1 93. Qh4+ Kg1 94. Ke4 Kf1 95. Kf3 g1=N+ 96. Ke3 Kg2 97. Qf2+ Kh1 98. Qg3 Ne2 99. Qh3+ Kg1 100. Qg4+ 1-0

[Event "Netanya Open 2019"]
[Site "Netanya"]
[Date "2019.06.28"]
[Round "6.58"]
[White "Leib, Daniel"]
[Black "Reches, Omer"]
[Result "1-0"]
[WhiteElo "1897"]
[BlackElo "1720"]
[PlyCount "71"]
[EventDate "2019.06.23"]
[EventType "swiss"]
[EventRounds "9"]
[EventCountry "ISR"]
[TimeControl "40/5400+30:1800+30"]

1. e4 c5 2. Nf3 e6 3. d4 cxd4 4. Nxd4 Nc6 5. c4 Nf6 6. Nc3 Bb4 7. Nxc6 bxc6 8. Bd3 Qc7 9. O-O O-O 10. Qe2 e5 11. Bg5 Ne8 12. Rac1 h6 13. Bh4 Bc5 14. Na4 Bd4 15. Be7 Qa5 16. Qc2 c5 17. a3 d6 18. Nc3 Nc7 19. Bxf8 Kxf8 20. Ne2 Ne6 21. Nxd4 Nxd4 22. Qc3 Qxc3 23. bxc3 Nb3 24. Rc2 Ke7 25. Rb2 Na5 26. f4 Ba6 27. f5 f6 28. Kf2 Rd8 29. Rfb1 Nc6 30. Bc2 Na5 31. Rb8 Rxb8 32. Rxb8 Bb7 33. Kf3 a6 34. Ba4 Bc6 35. Bxc6 Nxc6 36. Rb6 1-0

[Event "Netanya Open 2019"]
[Site "Netanya"]
[Date "2019.06.28"]
[Round "6.59"]
[White "Lazebnikov, Efim"]
[Black "Sheinkman, Lidan"]
[Result "0-1"]
[WhiteElo "1444"]
[BlackElo "1863"]
[PlyCount "42"]
[EventDate "2019.06.23"]
[EventType "swiss"]
[EventRounds "9"]
[EventCountry "ISR"]
[TimeControl "40/5400+30:1800+30"]

1. b3 e5 2. Bb2 Nc6 3. e3 Nf6 4. d3 d5 5. Be2 Bd6 6. Nd2 h5 7. Bf3 Be6 8. Rc1 Qd7 9. c4 Nb4 10. cxd5 Nxd3+ 11. Kf1 Bxd5 12. Rc2 Qf5 13. Nc4 e4 14. Nxd6+ cxd6 15. g4 hxg4 16. Bxg4 Nxg4 17. Kg2 Qxf2+ 18. Rxf2 Nxe3+ 19. Kg3 Nxd1 20. Bd4 N1xf2 21. Bxf2 Nxf2 0-1

[Event "Netanya Open 2019"]
[Site "Netanya"]
[Date "2019.06.28"]
[Round "6.61"]
[White "Fudim, Basya"]
[Black "Lomakin, Vladimir"]
[Result "1/2-1/2"]
[WhiteElo "1332"]
[BlackElo "1430"]
[PlyCount "61"]
[EventDate "2019.06.23"]
[EventType "swiss"]
[EventRounds "9"]
[EventCountry "ISR"]
[TimeControl "40/5400+30:1800+30"]

1. d4 d5 2. Bf4 Nf6 3. Nf3 g6 4. e3 Bg7 5. Bd3 O-O 6. O-O Bg4 7. Nbd2 Nh5 8. Bg5 Bf6 9. Bxf6 Nxf6 10. c4 Re8 11. Qb3 b6 12. cxd5 Nxd5 13. Bc4 Bxf3 14. Nxf3 e6 15. e4 Ne7 16. d5 exd5 17. exd5 Qd6 18. Ng5 h6 19. Ne4 Qf4 20. d6 cxd6 21. Nxd6 Rf8 22. Rad1 Nbc6 23. Rfe1 Na5 24. Qa4 Nxc4 25. Nxc4 Nf5 26. Qb3 Rad8 27. Rxd8 Rxd8 28. Ne5 Nd4 29. Qc3 Nb5 30. Qf3 Qxf3 31. Nxf3 1/2-1/2

[Event "Netanya Open 2019"]
[Site "Netanya"]
[Date "2019.06.28"]
[Round "6.62"]
[White "Neeman, Ori"]
[Black "Stolyarsky, Yegor"]
[Result "0-1"]
[ECO "C44"]
[WhiteElo "1285"]
[BlackElo "2017"]
[PlyCount "54"]
[EventDate "2019.06.23"]
[EventType "swiss"]
[EventRounds "9"]
[EventCountry "ISR"]
[TimeControl "40/5400+30:1800+30"]

{[%evp 0,40,20,14,32,15,14,-20,-20,-20,-8,-8,-12,-17,-8,-20,35,-78,13,-311,18,-58,-1,-46,15,-64,5,-47,-58,-78,-115,-86,-70,-82,-78,-448,-439,-477,-290,-537,-740,-1883,-29984]} 1. e4 e5 2. Nf3 Nc6 3. d3 Nf6 4. Bg5 h6 5. Bxf6 Qxf6 6. g3 Bc5 7. Bg2 d5 8. O-O Bg4 9. a4 a5 10. Nbd2 O-O-O 11. Rb1 g5 12. Ra1 h5 13. h3 Be6 14. h4 gxh4 15. Nxh4 Rdg8 16. Kh1 Rg4 17. Qf3 Rxh4+ 18. gxh4 Qxh4+ 19. Kg1 Nd4 20. Qd1 Rg8 21. Nf3 Rxg2+ 22. Kxg2 Qh3+ 23. Kg1 Nxf3+ 24. Qxf3 Qxf3 25. Kh2 Bxf2 26. Rxf2 Qxf2+ 27. Kh1 Bg4 0-1

[Event "Netanya Open 2019"]
[Site "Netanya"]
[Date "2019.06.28"]
[Round "6.63"]
[White "Kopaloff, Liam"]
[Black "Sivan, Guy"]
[Result "1-0"]
[WhiteElo "1545"]
[BlackElo "1246"]
[PlyCount "87"]
[EventDate "2019.06.23"]
[EventType "swiss"]
[EventRounds "9"]
[EventCountry "ISR"]
[TimeControl "40/5400+30:1800+30"]

1. e4 e5 2. Nf3 Nc6 3. c3 Nf6 4. d4 exd4 5. e5 Qe7 6. cxd4 d6 7. Bb5 a6 8. Bxc6+ bxc6 9. O-O Nd5 10. Re1 Be6 11. Nc3 Qd7 12. Ng5 Be7 13. Nxe6 fxe6 14. Qg4 O-O 15. exd6 cxd6 16. Nxd5 cxd5 17. Qxe6+ Qxe6 18. Rxe6 Rfe8 19. Bf4 Kf7 20. Rae1 Rac8 21. b3 g5 22. Bg3 h5 23. h3 Bf6 24. Rxe8 Rxe8 25. Rxe8 Kxe8 26. Bxd6 Bxd4 27. Kf1 Kd7 28. Bb4 Ke6 29. Ke2 Ke5 30. Bd2 Kf5 31. b4 g4 32. h4 Ke5 33. a4 Kf5 34. b5 Ke6 35. bxa6 Kd7 36. Be3 Bxe3 37. Kxe3 Kc6 38. a5 Kc7 39. f4 gxf3 40. gxf3 Kb8 41. f4 Ka7 42. f5 Kxa6 43. f6 Kxa5 44. f7 1-0

[Event "Netanya Open 2019"]
[Site "Netanya"]
[Date "2019.06.28"]
[Round "6.64"]
[White "Schnaidman, Itzhak"]
[Black "Mendler, Omer"]
[Result "1-0"]
[WhiteElo "1474"]
[BlackElo "1231"]
[PlyCount "89"]
[EventDate "2019.06.23"]
[EventType "swiss"]
[EventRounds "9"]
[EventCountry "ISR"]
[TimeControl "40/5400+30:1800+30"]

1. d4 d5 2. c4 e6 3. Nc3 Nf6 4. cxd5 exd5 5. Bg5 Be7 6. e3 Bf5 7. Qb3 c6 8. Bxf6 Bxf6 9. Qxb7 Qd7 10. Ba6 Nxa6 11. Qxa8+ Bd8 12. Nf3 f6 13. Nxd5 cxd5 14. Rc1 Nb4 15. O-O O-O 16. Qb8 Bb6 17. Qg3 Nxa2 18. Ra1 Nb4 19. Nh4 Be4 20. f3 Bd3 21. Rf2 Re8 22. Rd2 Rxe3 23. Qf4 Nc2 24. Rxc2 Bxc2 25. Qxe3 g5 26. Qc3 Qc7 27. Qxc7 Bxc7 28. Rc1 Bb6 29. Rxc2 Bxd4+ 30. Kf1 gxh4 31. Rd2 Be5 32. Rxd5 Bxb2 33. Rd8+ Kg7 34. Rd7+ Kg6 35. Rxa7 Be5 36. Ra4 Kg5 37. Rg4+ Kh5 38. h3 Bg3 39. Ke2 f5 40. Rg8 f4 41. Kd3 h6 42. Ke4 Bh2 43. Kf5 Bg3 44. Rxg3 fxg3 45. Kf4 1-0

[Event "Netanya Open 2019"]
[Site "Netanya"]
[Date "2019.06.28"]
[Round "6.65"]
[White "Kinberg, Raz"]
[Black "Usha Margolin, Daniel"]
[Result "1/2-1/2"]
[WhiteElo "1385"]
[BlackElo "1437"]
[PlyCount "65"]
[EventDate "2019.06.23"]
[EventType "swiss"]
[EventRounds "9"]
[EventCountry "ISR"]
[TimeControl "40/5400+30:1800+30"]

1. e4 e5 2. Bc4 Nf6 3. d3 Nc6 4. Nc3 Bb4 5. Bg5 d6 6. Nge2 Be6 7. Bb3 O-O 8. O-O h6 9. Bxf6 Qxf6 10. Nd5 Bxd5 11. Bxd5 Rab8 12. c3 Bc5 13. Qd2 Ne7 14. Bb3 Qg6 15. d4 Bb6 16. f3 c5 17. Kh1 Kh8 18. dxe5 dxe5 19. Ng3 f5 20. Rad1 Rbd8 21. Qc1 Rb8 22. Rd7 f4 23. Rxe7 fxg3 24. h3 Qh5 25. Bd5 Rf6 26. Qe1 Qg5 27. Rxb7 Rbf8 28. c4 Qh4 29. Qe2 g5 30. Rd1 h5 31. Kg1 g4 32. fxg4 Rf2 33. Qe3 1/2-1/2

[Event "Netanya Open 2019"]
[Site "Netanya"]
[Date "2019.06.28"]
[Round "6.66"]
[White "Friedland, Benzi"]
[Black "Segev, Ido"]
[Result "0-1"]
[WhiteElo "1189"]
[BlackElo "1382"]
[PlyCount "92"]
[EventDate "2019.06.23"]
[EventType "swiss"]
[EventRounds "9"]
[EventCountry "ISR"]
[TimeControl "40/5400+30:1800+30"]

1. e4 c5 2. Nf3 Nc6 3. Bc4 d6 4. h3 e6 5. Nc3 Nf6 6. d4 cxd4 7. Nxd4 a6 8. Nxc6 bxc6 9. Bg5 h6 10. Bf4 Be7 11. Qf3 O-O 12. O-O d5 13. Bd3 Bd6 14. e5 Nd7 15. exd6 e5 16. Bd2 e4 17. Qg3 exd3 18. Bxh6 Qf6 19. Bg5 Qe5 20. Bf4 Qf5 21. cxd3 Nf6 22. Ne2 Nh5 23. Qg5 Nxf4 24. Qxf5 Nxe2+ 25. Kh2 Bxf5 26. Rad1 Rab8 27. b3 Rbd8 28. g4 Bh7 29. Rfe1 Nf4 30. Re7 Rxd6 31. Ra7 c5 32. d4 c4 33. Kg3 Ne6 34. f4 f5 35. g5 Bg6 36. b4 Bh5 37. Rd2 c3 38. Rc2 Nxd4 39. Rxc3 Ne2+ 40. Kh4 Nxc3 41. Kxh5 d4 42. Rc7 Ne2 43. a4 Kh7 44. b5 Rh8 45. g6+ Rxg6 46. Rc6 Nxf4+ 0-1

[Event "Netanya Open 2019"]
[Site "Netanya"]
[Date "2019.06.28"]
[Round "6.67"]
[White "Lisnovetzky, Daniel"]
[Black "Baran, Yulia"]
[Result "1-0"]
[WhiteElo "1320"]
[BlackElo "1344"]
[PlyCount "63"]
[EventDate "2019.06.23"]
[EventType "swiss"]
[EventRounds "9"]
[EventCountry "ISR"]
[TimeControl "40/5400+30:1800+30"]

1. e4 e5 2. Nf3 d6 3. Bc4 Be7 4. d4 exd4 5. Nxd4 Nf6 6. Nc3 Bd7 7. Be3 Nc6 8. Qd2 O-O 9. O-O-O Nxd4 10. Bxd4 Bc6 11. f3 h6 12. g4 Nd7 13. Nd5 Ne5 14. Bxe5 dxe5 15. Nxe7+ Qxe7 16. Rdg1 Rad8 17. Qe3 b5 18. Bb3 a5 19. a3 Qg5 20. Qxg5 hxg5 21. h4 gxh4 22. Rxh4 g6 23. g5 Kg7 24. Rgh1 Rh8 25. Rxh8 Rxh8 26. Rxh8 Kxh8 27. Bxf7 Kg7 28. Bd5 Bxd5 29. exd5 Kf7 30. Kd2 Ke7 31. Ke3 Kd6 32. Ke4 1-0

[Event "Netanya Open 2019"]
[Site "Netanya"]
[Date "2019.06.28"]
[Round "6.68"]
[White "Ben Hemo, Guy"]
[Black "Havakuk, Elad"]
[Result "1-0"]
[WhiteElo "1453"]
[BlackElo "1350"]
[PlyCount "65"]
[EventDate "2019.06.23"]
[EventType "swiss"]
[EventRounds "9"]
[EventCountry "ISR"]
[TimeControl "40/5400+30:1800+30"]

1. e4 c5 2. Nf3 Nc6 3. d4 cxd4 4. Nxd4 g6 5. c4 Bg7 6. Be3 Nf6 7. f3 e5 8. Nb5 a6 9. Nd6+ Kf8 10. c5 Nd4 11. Bxd4 exd4 12. Qxd4 Ne8 13. Qd5 Nxd6 14. Qxd6+ Kg8 15. Nc3 b5 16. cxb6 Rb8 17. Qxb8 d6 18. b7 Bxb7 19. Qxd8+ Bf8 20. Bc4 h5 21. Qc7 Rh7 22. Qxb7 a5 23. Nd5 Bg7 24. Qc8+ Bf8 25. Nf6+ Kg7 26. Nxh7 d5 27. Bxd5 a4 28. Qxf8+ Kxh7 29. Qxf7+ Kh6 30. h4 a3 31. Qf8+ Kh7 32. Qg8+ Kh6 33. Qh8# 1-0

[Event "Netanya Open 2019"]
[Site "Netanya"]
[Date "2019.06.28"]
[Round "6.69"]
[White "Khairova, Evelina"]
[Black "Marques, Don"]
[Result "1-0"]
[WhiteElo "1501"]
[BlackElo "1179"]
[PlyCount "113"]
[EventDate "2019.06.23"]
[EventType "swiss"]
[EventRounds "9"]
[EventCountry "ISR"]
[TimeControl "40/5400+30:1800+30"]

1. e4 c5 2. Nf3 Nc6 3. d4 cxd4 4. Nxd4 e5 5. Nf3 Nf6 6. Nc3 Bb4 7. Bd3 d6 8. O-O Bg4 9. h3 Bxf3 10. Qxf3 Nd4 11. Qg3 Bxc3 12. bxc3 Nh5 13. Qg4 Nf4 14. cxd4 Nxd3 15. cxd3 O-O 16. Be3 exd4 17. Bxd4 f6 18. Rab1 b6 19. Rfc1 Qe7 20. Rc6 Rad8 21. Rbc1 Rd7 22. Qf5 Kh8 23. Qd5 h6 24. Qc4 Kh7 25. Rc7 Rf7 26. Rxd7 Qxd7 27. Qc6 Qe6 28. Qd5 Qxd5 29. exd5 f5 30. Rc6 Rd7 31. Bb2 Re7 32. Kf1 Rd7 33. Ba3 b5 34. Rxd6 Rb7 35. Bb2 a5 36. Ra6 a4 37. a3 Kg8 38. Ke2 Kf7 39. Bd4 Ke8 40. Rb6 Rc7 41. Kd2 h5 42. Rxb5 Rd7 43. Ra5 g5 44. Kc3 Rb7 45. Ra8+ Kd7 46. Ra7 Rxa7 47. Bxa7 Kd6 48. Kd4 g4 49. f3 gxf3 50. gxf3 Kd7 51. Kc5 Kc7 52. Bb6+ Kd7 53. d6 Ke6 54. f4 Kd7 55. h4 Kc8 56. Kc6 Kb8 57. d7 1-0

[Event "Netanya Open 2019"]
[Site "Netanya"]
[Date "2019.06.30"]
[Round "7.1"]
[White "Antipov, Mikhail Al."]
[Black "Svetushkin, Dmitry"]
[Result "1-0"]
[ECO "C88"]
[WhiteElo "2582"]
[BlackElo "2532"]
[Annotator "ChessBase"]
[PlyCount "61"]
[EventDate "2019.06.23"]
[EventType "swiss"]
[EventCountry "ISR"]
[SourceTitle "playchess.com"]
[Source "ChessBase"]
[SourceQuality "1"]
[TimeControl "40/5400+30:1800+30"]

1. e4 {[%emt 0:00:00]} e5 {[%emt 0:00:08]} 2. Nf3 {[%emt 0:00:00]} Nc6 {[%emt 0:00:05]} 3. Bb5 {[%emt 0:00:00]} a6 {[%emt 0:00:27]} 4. Ba4 {[%emt 0:00:00]} Nf6 {[%emt 0:00:27]} 5. O-O {[%emt 0:00:00]} Be7 {[%emt 0:00:18]} 6. Re1 {[%emt 0:00:05]} b5 {[%emt 0:00:08]} 7. Bb3 {[%emt 0:00:05]} O-O {[%emt 0:03:35]} 8. d3 {[%emt 0:05:26]} d6 {[%emt 0:01:23]} 9. a4 {[%emt 0:00:17]} Bb7 {[%emt 0:00:12]} 10. Nc3 {[%emt 0:01:23]} Na5 {[%emt 0:00:15]} 11. Ba2 {[%emt 0:00:20]} b4 {[%emt 0:00:11]} 12. Ne2 {[%emt 0:00:38]} c5 {[%emt 0:00:31]} 13. Ng3 {[%emt 0:13:07]} Bc8 {[%emt 0:02:02]} 14. Nd2 {[%emt 0:05:26]} Be6 {[%emt 0:09:04]} 15. Nc4 {[%emt 0:03:06]} Nxc4 {[%emt 0:02:37]} 16. Bxc4 {[%emt 0:00:28]} Nd7 {[%emt 0:07:06]} 17. c3 {[%emt 0:23:50]} a5 {[%emt 0:22:57]} 18. Bxe6 {[%emt 0:13:52]} fxe6 {[%emt 0:00:32]} 19. Qb3 {[%emt 0:00:07]} Rf6 {[%emt 0:00:43]} 20. cxb4 {[%emt 0:00:47]} cxb4 {[%emt 0:10:20]} 21. Be3 {[%emt 0:01:17]} Rg6 {[%emt 0:00:36]} 22. d4 {[%emt 0:02:24]} exd4 {[%emt 0:05:13]} 23. Bxd4 {[%emt 0:00:02]} Kh8 {[%emt 0:00:09]} 24. Rac1 {[%emt 0:11:21]} Nc5 {[%emt 0:04:31]} 25. Bxc5 {[%emt 0:04:35]} dxc5 {[%emt 0:00:13]} 26. e5 {[%emt 0:00:53]} Qc7 {[%emt 0:03:10]} 27. Qf3 {[%emt 0:04:27]} Rd8 {[%emt 0:02:51]} 28. Red1 {[%emt 0:03:48]} Rf8 {[%emt 0:02:10]} 29. Qe4 {[%emt 0:00:34]} Bg5 {[%emt 0:04:10]} 30. Rc4 {[%emt 0:00:41]} Bf4 {[%emt 0:05:22]} 31. Qf3 {[%emt 0:01:24]} 1-0

[Event "Netanya Open 2019"]
[Site "Netanya"]
[Date "2019.06.30"]
[Round "7.3"]
[White "Moiseenko, Alexander"]
[Black "Mikhalevski, Victor"]
[Result "1-0"]
[ECO "D97"]
[WhiteElo "2642"]
[BlackElo "2579"]
[Annotator "RC"]
[PlyCount "63"]
[EventDate "2019.06.23"]
[EventType "swiss"]
[EventCountry "ISR"]
[SourceTitle "playchess.com"]
[Source "ChessBase"]
[SourceQuality "1"]
[TimeControl "40/5400+30:1800+30"]

1. d4 {[%emt 0:00:00]} Nf6 {[%emt 0:01:39]} 2. c4 {[%emt 0:00:00]} g6 {[%emt 0:00:09]} 3. Nc3 {[%emt 0:00:00]} d5 {[%emt 0:00:10]} 4. Nf3 {[%emt 0:00:19]} Bg7 {[%emt 0:00:09]} 5. Qb3 {[%emt 0:00:04]} dxc4 {[%emt 0:00:08]} 6. Qxc4 {[%emt 0:00:04]} O-O {[%emt 0:00:47]} 7. e4 {[%emt 0:01:09]} Nc6 {[%emt 0:00:26]} 8. Be2 {[%emt 0:03:53]} e5 {[%emt 0:00:27]} 9. d5 {[%emt 0:00:05]} Nd4 {[%emt 0:00:05]} 10. Nxd4 {[%emt 0:00:34]} exd4 {[%emt 0:00:06]} 11. Qxd4 {[%emt 0:00:05]} c6 {[%emt 0:00:06]} 12. Qc4 {[%emt 0:00:40]} b5 {[%emt 0:00:14]} 13. Qxc6 {[%emt 0:00:25]} Bd7 {[%emt 0:00:06]} 14. Qd6 {[%emt 0:00:15]} Re8 {[%emt 0:00:16]} 15. Bg5 {[%emt 0:01:46]} b4 {[%emt 0:00:38]} 16. Qxb4 {[%emt 0:01:19]} Nxd5 {[%emt 0:00:06]} 17. Nxd5 {[%emt 0:00:31]} Qxg5 {[%emt 0:00:07]} 18. O-O {[%emt 0:01:44]} Rab8 {[%emt 0:00:54]} 19. Qd6 {[%emt 1:26:37]} Bh3 {[%emt 0:00:24]} 20. Bf3 {[%emt 0:00:00]} Rxb2 {[%emt 0:03:36]} 21. Rab1 {[%emt 0:00:00]} Be5 {[%emt 0:12:21]} 22. Qa3 {[%emt 0:00:00]} Reb8 {[%emt 0:03:40]} 23. Rxb2 {[%emt 0:00:00]} Rxb2 {[%emt 0:00:07]} 24. Qe7 {[%emt 0:00:00]} f6 {[%emt 0:04:55]} 25. Qe8+ {[%emt 0:00:00]} Kg7 {[%emt 0:00:10]} 26. Qe7+ {[%emt 0:00:00]} Kg8 {[%emt 0:00:07]} 27. Rd1 {[%emt 0:00:00]} Bd4 {[%emt 0:06:04]} 28. Qe8+ {[%emt 0:00:00]} Kg7 {[%emt 0:00:01]} 29. Qe7+ {[%emt 0:00:00]} Kg8 {[%emt 0:00:06]} 30. Ne3 {[%emt 0:00:00]} Bb6 {[%emt 0:02:52]} 31. e5 {[%emt 0:00:00]} Bxg2 {[%emt 0:04:16]} 32. Qe8+ {[%emt 0:00:00]} 1-0

[Event "Netanya Open 2019"]
[Site "Netanya"]
[Date "2019.06.30"]
[Round "7.6"]
[White "Flom, Gabriel"]
[Black "Rozentalis, Eduardas"]
[Result "1/2-1/2"]
[ECO "E20"]
[WhiteElo "2480"]
[BlackElo "2540"]
[Annotator "ChessBase"]
[PlyCount "99"]
[EventDate "2019.06.23"]
[EventType "swiss"]
[EventCountry "ISR"]
[SourceTitle "playchess.com"]
[Source "ChessBase"]
[SourceQuality "1"]
[TimeControl "40/5400+30:1800+30"]

1. d4 {[%emt 0:05:32]} Nf6 {[%emt 0:00:00]} 2. c4 {[%emt 0:00:09]} e6 {[%emt 0:00:00]} 3. Nc3 {[%emt 0:00:05]} Bb4 {[%emt 0:00:00]} 4. f3 {[%emt 0:00:03]} O-O {[%emt 0:01:11]} 5. e4 {[%emt 0:01:58]} d5 {[%emt 0:00:14]} 6. cxd5 {[%emt 0:06:38]} exd5 {[%emt 0:00:14]} 7. e5 {[%emt 0:00:01]} Nfd7 {[%emt 0:00:24]} 8. a3 {[%emt 0:05:30]} Bxc3+ {[%emt 0:00:39]} 9. bxc3 {[%emt 0:00:02]} f6 {[%emt 0:00:09]} 10. exf6 {[%emt 0:01:11]} Qxf6 {[%emt 0:00:27]} 11. Bd3 {[%emt 0:00:24]} Nb6 {[%emt 0:01:11]} 12. Ne2 {[%emt 0:01:06]} Bf5 {[%emt 0:01:11]} 13. Bf4 {[%emt 0:00:11]} Qc6 {[%emt 0:06:52]} 14. O-O {[%emt 0:02:21]} N8d7 {[%emt 0:01:35]} 15. Be5 {[%emt 0:00:23]} Nc4 {[%emt 0:02:29]} 16. Bxf5 {[%emt 0:03:11]} Rxf5 {[%emt 0:00:18]} 17. Qd3 {[%emt 0:04:45]} Rf7 {[%emt 0:12:55]} 18. f4 {[%emt 0:00:21]} Nf6 {[%emt 0:00:28]} 19. Ng3 {[%emt 0:02:11]} Ne4 {[%emt 0:01:01]} 20. Rfe1 {[%emt 0:06:52]} Nxg3 {[%emt 0:03:41]} 21. hxg3 {[%emt 0:01:17]} Raf8 {[%emt 0:05:02]} 22. Rf1 {[%emt 0:08:54]} Qg6 {[%emt 0:12:22]} 23. Qxg6 {[%emt 0:08:35]} hxg6 {[%emt 0:00:50]} 24. Rf3 {[%emt 0:05:14]} c6 {[%emt 0:03:41]} 25. Kf2 {[%emt 0:00:58]} b5 {[%emt 0:18:26]} 26. g4 {[%emt 0:00:45]} a5 {[%emt 0:01:41]} 27. Rh1 {[%emt 0:08:07]} Re8 {[%emt 0:02:03]} 28. g5 {[%emt 0:10:46]} Kf8 {[%emt 0:07:57]} 29. g4 {[%emt 0:01:32]} Ke7 {[%emt 0:00:42]} 30. f5 {[%emt 0:00:12]} Kd7 {[%emt 0:01:43]} 31. f6 {[%emt 0:06:34]} gxf6 {[%emt 0:13:41]} 32. Rxf6 {[%emt 0:00:19]} Rg7 {[%emt 0:00:41]} 33. Bf4 {[%emt 0:01:30]} a4 {[%emt 0:00:54]} 34. Rh6 {[%emt 0:00:34]} Re6 {[%emt 0:00:13]} 35. Rh8 {[%emt 0:02:07]} Rxf6 {[%emt 0:00:16]} 36. gxf6 {[%emt 0:00:03]} Rf7 {[%emt 0:00:03]} 37. g5 {[%emt 0:00:51]} Nxa3 {[%emt 0:01:38]} 38. Ke2 {[%emt 0:02:51]} Nc4 {[%emt 0:00:51]} 39. Kd3 {[%emt 0:00:20]} a3 {[%emt 0:00:43]} 40. Kc2 {[%emt 0:01:33]} Ke6 {[%emt 0:00:14]} 41. Kb3 {[%emt 0:32:52]} Ra7 {[%emt 0:04:12]} 42. Ka2 {[%emt 0:00:00]} Kf5 {[%emt 0:00:28]} 43. Bc1 {[%emt 0:00:00]} Nd6 {[%emt 0:02:58]} 44. Rh1 {[%emt 0:00:00]} Ne4 {[%emt 0:01:24]} 45. Rf1+ {[%emt 0:00:00]} Ke6 {[%emt 0:00:12]} 46. Rf3 {[%emt 0:00:00]} Ra8 {[%emt 0:04:57]} 47. Rh3 {[%emt 0:00:00]} Kf5 {[%emt 0:02:35]} 48. Rf3+ {[%emt 0:00:00]} Ke6 {[%emt 0:02:54]} 49. Rh3 {[%emt 0:00:00]} Kf5 {[%emt 0:00:34]} 50. Rf3+ {[%emt 0:00:00]} 1/2-1/2

[Event "Netanya Open 2019"]
[Site "Netanya"]
[Date "2019.06.30"]
[Round "7.7"]
[White "Baron, Tal"]
[Black "Erenberg, Ariel"]
[Result "1-0"]
[ECO "E26"]
[WhiteElo "2524"]
[BlackElo "2434"]
[Annotator "ChessBase"]
[PlyCount "123"]
[EventDate "2019.06.23"]
[EventType "swiss"]
[EventCountry "ISR"]
[SourceTitle "playchess.com"]
[Source "ChessBase"]
[SourceQuality "1"]
[TimeControl "40/5400+30:1800+30"]

1. d4 {[%emt 0:23:09]} Nf6 {[%emt 0:00:00]} 2. c4 {[%emt 0:00:03]} e6 {[%emt 0:00:00]} 3. Nc3 {[%emt 0:00:07]} Bb4 {[%emt 0:00:00]} 4. a3 {[%emt 0:00:02]} Bxc3+ {[%emt 0:01:49]} 5. bxc3 {[%emt 0:00:02]} c5 {[%emt 0:04:39]} 6. e3 {[%emt 0:00:17]} Qa5 {[%emt 0:20:35]} 7. Bd2 {[%emt 0:00:25]} Ne4 {[%emt 0:04:52]} 8. Bd3 {[%emt 0:00:49]} Nxd2 {[%emt 0:00:31]} 9. Qxd2 {[%emt 0:00:21]} O-O {[%emt 0:06:17]} 10. Nf3 {[%emt 0:01:08]} d5 {[%emt 0:11:15]} 11. cxd5 {[%emt 0:04:52]} exd5 {[%emt 0:00:20]} 12. O-O {[%emt 0:00:24]} Nc6 {[%emt 0:00:15]} 13. Qb2 {[%emt 0:10:41]} a6 {[%emt 0:08:13]} 14. a4 {[%emt 0:12:41]} Rb8 {[%emt 0:09:14]} 15. Rfb1 {[%emt 0:02:49]} Bg4 {[%emt 0:01:56]} 16. Nd2 {[%emt 0:00:49]} Qc7 {[%emt 0:01:51]} 17. h3 {[%emt 0:05:16]} Bh5 {[%emt 0:04:08]} 18. Qb6 {[%emt 0:00:17]} Qxb6 {[%emt 0:03:20]} 19. Rxb6 {[%emt 0:00:01]} Na5 {[%emt 0:02:21]} 20. dxc5 {[%emt 0:07:13]} Bg6 {[%emt 0:02:30]} 21. Be2 {[%emt 0:07:08]} Rfc8 {[%emt 0:06:01]} 22. Nb3 {[%emt 0:00:26]} Nxb3 {[%emt 0:00:07]} 23. Rxb3 {[%emt 0:00:03]} f6 {[%emt 0:01:43]} 24. Rb6 {[%emt 0:04:36]} Be8 {[%emt 0:05:59]} 25. a5 {[%emt 0:00:05]} Kf8 {[%emt 0:01:12]} 26. g4 {[%emt 0:08:37]} Rxc5 {[%emt 0:00:35]} 27. Bxa6 {[%emt 0:00:06]} Bc6 {[%emt 0:02:57]} 28. Rab1 {[%emt 0:02:54]} Rxc3 {[%emt 0:00:31]} 29. Bxb7 {[%emt 0:00:13]} Rxb7 {[%emt 0:00:11]} 30. Rxb7 {[%emt 0:00:03]} Bxb7 {[%emt 0:00:04]} 31. Rxb7 {[%emt 0:00:02]} Ra3 {[%emt 0:00:08]} 32. Rb5 {[%emt 0:00:17]} d4 {[%emt 0:00:45]} 33. exd4 {[%emt 0:00:24]} Rxh3 {[%emt 0:00:04]} 34. Rb8+ {[%emt 0:00:59]} Ke7 {[%emt 0:01:24]} 35. a6 {[%emt 0:01:15]} Ra3 {[%emt 0:00:08]} 36. Rb7+ {[%emt 0:00:12]} Ke6 {[%emt 0:00:09]} 37. a7 {[%emt 0:00:10]} g5 {[%emt 0:01:04]} 38. Rxh7 {[%emt 0:00:07]} Kd5 {[%emt 0:00:01]} 39. Rd7+ {[%emt 0:03:26]} Ke6 {[%emt 0:00:12]} 40. Rb7 {[%emt 0:02:10]} Kd5 {[%emt 0:01:20]} 41. Kf1 {[%emt 0:34:29]} Kxd4 {[%emt 0:31:16]} 42. Ke2 {[%emt 0:01:00]} Ra2+ {[%emt 0:00:00]} 43. Kd1 {[%emt 0:00:00]} Ke4 {[%emt 0:00:00]} 44. Rf7 {[%emt 0:00:00]} Kf4 {[%emt 0:00:00]} 45. Rxf6+ {[%emt 0:00:00]} Kxg4 {[%emt 0:00:00]} 46. Rf7 {[%emt 0:00:00]} Kh3 {[%emt 0:01:09]} 47. Rg7 {[%emt 0:00:00]} g4 {[%emt 0:01:15]} 48. Kc1 {[%emt 0:00:00]} Kg2 {[%emt 0:00:26]} 49. f4 {[%emt 0:00:00]} g3 {[%emt 0:00:04]} 50. f5 {[%emt 0:00:00]} Kh1 {[%emt 0:01:10]} 51. f6 {[%emt 0:00:00]} g2 {[%emt 0:00:08]} 52. f7 {[%emt 0:00:00]} Ra1+ {[%emt 0:00:45]} 53. Kb2 {[%emt 0:00:00]} Rxa7 {[%emt 0:00:09]} 54. f8=Q {[%emt 0:00:00]} Rxg7 {[%emt 0:00:13]} 55. Qh8+ {[%emt 0:00:00]} Kg1 {[%emt 0:00:04]} 56. Qxg7 {[%emt 0:00:00]} Kf1 {[%emt 0:00:05]} 57. Qf6+ {[%emt 0:00:00]} Ke2 {[%emt 0:00:06]} 58. Qg5 {[%emt 0:00:00]} Kf2 {[%emt 0:00:04]} 59. Qf4+ {[%emt 0:00:00]} Ke2 {[%emt 0:00:32]} 60. Qg3 {[%emt 0:00:00]} Kf1 {[%emt 0:00:31]} 61. Qf3+ {[%emt 0:00:00]} Kg1 {[%emt 0:00:34]} 62. Kc3 {[%emt 0:00:00]} 1-0